bitfinex-derivatives/quotes_BTCF0:USTF0_20241231
["timestamp","ask_amount","ask_price","bid_price","bid_amount"]
[1735641577013,0.056201,94131.0,94130.0,0.3608]
[1735641577325,0.056201,94131.0,94130.0,0.414]
[1735641582709,0.055201,94131.0,94130.0,0.414]
[1735641584217,0.053201,94131.0,94130.0,0.414]
[1735641584827,0.001,94131.0,94130.0,0.414]
[1735641585917,0.054201,94131.0,94130.0,0.414]
[1735641588921,0.09797086,94145.0,94130.0,0.414]
[1735641589120,0.09797086,94145.0,94144.0,0.053192]
[1735641589621,0.09797086,94145.0,94144.0,0.129692]
[1735641589812,0.46818763,94157.0,94144.0,0.129692]
[1735641590007,0.46762762,94157.0,94156.0,0.053185]
[1735641590209,0.46762762,94157.0,94156.0,0.0084321]
[1735641590420,0.46762762,94157.0,94151.0,0.3608]
[1735641590623,0.46762762,94157.0,94156.0,0.053185]
[1735641590927,0.053185,94157.0,94156.0,0.053185]
[1735641591427,0.062185,94157.0,94156.0,0.054185]
[1735641592328,0.062185,94157.0,94156.0,0.001]
[1735641592623,0.066185,94157.0,94156.0,0.001]
[1735641595926,0.17828787,94157.0,94131.0,0.0394]
[1735641596126,0.053197,94136.0,94135.0,0.053197]
[1735641600826,0.053198,94134.0,94133.0,0.42500757]
[1735641602032,0.053195,94139.0,94138.0,0.053193]
[1735641603917,0.055195,94139.0,94138.0,0.053193]
[1735641604521,0.053195,94139.0,94138.0,0.053193]
[1735641604725,0.057195,94139.0,94138.0,0.053193]
[1735641605022,0.004,94139.0,94138.0,0.053193]
[1735641605424,0.005,94139.0,94138.0,0.053193]
[1735641606522,0.058195,94139.0,94138.0,0.053193]
[1735641607333,0.056195,94139.0,94138.0,0.053193]
[1735641607833,0.054195,94139.0,94138.0,0.053193]
[1735641608033,0.057195,94139.0,94138.0,0.053193]
[1735641608429,0.054195,94139.0,94138.0,0.053193]
[1735641608635,0.058195,94139.0,94138.0,0.053193]
[1735641608839,0.057195,94139.0,94138.0,0.053193]
[1735641609135,0.059195,94139.0,94138.0,0.053193]
[1735641613336,0.006,94139.0,94138.0,0.02408526]
[1735641614229,0.002,94139.0,94138.0,0.02408526]
[1735641614431,0.09797086,94152.0,94138.0,0.68588526]
[1735641614630,0.09626848,94152.0,94151.0,0.413988]
[1735641615329,0.41444262,94163.0,94151.0,0.413988]
[1735641615530,0.41500263,94163.0,94157.0,0.053185]
[1735641616532,0.46818463,94163.0,94157.0,0.053185]
[1735641617732,0.053182,94162.0,94157.0,0.053185]
[1735641617937,0.01059356,94158.0,94157.0,0.054185]
[1735641618437,0.01459356,94158.0,94157.0,0.054185]
[1735641623331,0.06777756,94158.0,94157.0,0.054185]
[1735641623532,0.06777756,94158.0,94157.0,0.001]
[1735641628744,0.06777756,94158.0,94157.0,0.054185]
[1735641629140,0.01459356,94158.0,94157.0,0.054185]
[1735641629944,0.013,94158.0,94157.0,0.02502528]
[1735641630445,0.013,94158.0,94157.0,0.38582528]
[1735641637148,0.00159308,94177.0,94157.0,0.3608]
[1735641637357,0.00159308,94177.0,94176.0,0.413974]
[1735641638541,0.00559308,94177.0,94176.0,0.413974]
[1735641639346,0.01459308,94177.0,94176.0,0.414974]
[1735641640640,0.01059308,94177.0,94176.0,0.414974]
[1735641640841,0.06476608,94177.0,94176.0,0.415974]
[1735641641948,0.06476608,94177.0,94176.0,0.35610428]
[1735641643344,0.06476608,94177.0,94176.0,0.002]
[1735641643653,0.063173,94177.0,94176.0,0.415974]
[1735641644049,0.063173,94177.0,94176.0,0.055174]
[1735641646056,0.01,94177.0,94176.0,0.055174]
[1735641649055,0.063173,94177.0,94176.0,0.055174]
[1735641654760,0.01,94177.0,94176.0,0.415974]
[1735641657667,0.001,94177.0,94176.0,0.414974]
[1735641657963,0.01,94177.0,94176.0,0.415974]
[1735641658963,0.014,94177.0,94176.0,0.415974]
[1735641665165,0.009,94177.0,94176.0,0.415974]
[1735641665372,0.014,94177.0,94176.0,0.415974]
[1735641668962,0.00025,94183.0,94176.0,0.415974]
[1735641669272,0.1,94200.0,94199.0,0.053161]
[1735641669470,0.1,94200.0,94199.0,0.413961]
[1735641671970,0.1,94200.0,94199.0,0.414961]
[1735641676373,0.1,94200.0,94199.0,0.42614965]
[1735641682081,0.1,94200.0,94199.0,0.42514965]
[1735641682277,0.1,94200.0,94199.0,0.42614965]
[1735641683675,0.10006944,94200.0,94199.0,0.42614965]
[1735641686577,0.10006944,94200.0,94199.0,0.78694965]
[1735641687382,4.4e-07,94200.0,94199.0,0.78694965]
[1735641687572,0.09793735,94217.0,94199.0,0.73378865]
[1735641687884,0.0374,94225.0,94224.0,0.053147]
[1735641687885,0.18848335,94225.0,94224.0,0.053147]
[1735641688271,0.13533735,94225.0,94224.0,0.053147]
[1735641688877,0.0374,94225.0,94224.0,0.053147]
[1735641689083,0.090546,94225.0,94224.0,0.053147]
[1735641689482,0.090546,94225.0,94224.0,0.001]
[1735641689681,0.090546,94225.0,94224.0,0.0005112]
[1735641690383,0.090546,94225.0,94224.0,0.00137629]
[1735641692086,0.053157,94207.0,94206.0,0.053157]
[1735641692282,0.053154,94213.0,94212.0,0.053152]
[1735641692589,0.053157,94209.0,94208.0,0.053156]
[1735641694191,0.0382,94211.0,94208.0,0.053156]
[1735641694388,0.0382,94211.0,94210.0,0.053155]
[1735641694979,0.053151,94218.0,94217.0,0.05315]
[1735641695588,0.09055,94223.0,94222.0,0.053148]
[1735641697492,0.09155,94223.0,94222.0,0.054148]
[1735641698385,0.001,94223.0,94222.0,0.054148]
[1735641698691,0.001,94223.0,94222.0,0.055148]
[1735641699691,0.001,94223.0,94222.0,0.002]
[1735641700189,0.054147,94223.0,94222.0,0.055148]
[1735641700393,0.054147,94223.0,94222.0,0.04057854]
[1735641703188,0.055147,94223.0,94222.0,0.04157854]
[1735641703891,0.056147,94223.0,94222.0,0.04157854]
[1735641704788,0.057147,94223.0,94222.0,0.04157854]
[1735641706285,0.057147,94223.0,94222.0,0.001]
[1735641706485,0.057147,94223.0,94222.0,0.054148]
[1735641706686,0.057147,94223.0,94222.0,0.001]
[1735641709899,0.057147,94223.0,94222.0,0.00045931]
[1735641711797,0.057147,94223.0,94222.0,0.05360731]
[1735641712998,0.054147,94223.0,94222.0,0.05360731]
[1735641713184,0.056147,94223.0,94222.0,0.05360731]
[1735641713788,0.054147,94223.0,94222.0,0.05360731]
[1735641713993,0.056147,94223.0,94222.0,0.05360731]
[1735641715200,0.056147,94223.0,94222.0,0.00045931]
[1735641715396,0.055147,94223.0,94212.0,0.091453]
[1735641715585,0.053153,94213.0,94212.0,0.091453]
[1735641716803,0.053153,94214.0,94213.0,0.053151]
[1735641717296,0.3608,94217.0,94212.0,0.0383]
[1735641717493,0.053153,94213.0,94212.0,0.091452]
[1735641719299,0.054153,94213.0,94212.0,0.091452]
[1735641719807,0.054153,94213.0,94212.0,0.0383]
[1735641721208,0.054153,94213.0,94212.0,0.091454]
[1735641722494,0.054153,94213.0,94212.0,0.0383]
[1735641722692,0.054153,94213.0,94212.0,0.091454]
[1735641723594,0.001,94213.0,94212.0,0.091454]
[1735641725206,0.001,94213.0,94212.0,0.03641743]
[1735641728205,0.3608,94222.0,94221.0,0.053149]
[1735641728804,0.16513988,94222.0,94221.0,0.053149]
[1735641729012,0.053146,94225.0,94224.0,0.053147]
[1735641730201,0.055146,94225.0,94224.0,0.053147]
[1735641731508,0.055146,94225.0,94224.0,0.06371856]
[1735641731707,0.09793735,94231.0,94230.0,0.053143]
[1735641732309,0.053137,94241.0,94240.0,0.053138]
[1735641732510,0.053137,94241.0,94240.0,0.413938]
[1735641733413,0.053137,94241.0,94240.0,0.413936]
[1735641734313,0.053137,94244.0,94243.0,0.053135]
[1735641735707,0.0334,94252.0,94243.0,0.001]
[1735641735909,0.053136,94244.0,94243.0,0.001]
[1735641736613,0.053136,94244.0,94243.0,0.00048926]
[1735641738619,0.053136,94244.0,94243.0,0.001]
[1735641739011,0.0315,94248.0,94243.0,0.001]
[1735641740514,0.053136,94244.0,94243.0,0.001]
[1735641740718,0.053136,94244.0,94232.0,0.3608]
[1735641740719,0.053142,94233.0,94232.0,0.3608]
[1735641741713,0.053142,94233.0,94232.0,0.3618]
[1735641741907,0.054142,94233.0,94232.0,0.3618]
[1735641742721,0.054142,94233.0,94232.0,0.001]
[1735641743019,0.054142,94233.0,94232.0,0.00068525]
[1735641743618,0.054142,94233.0,94212.0,0.413952]
[1735641743619,0.053153,94213.0,94212.0,0.413952]
[1735641743821,0.3608,94228.0,94212.0,0.37156375]
[1735641744014,0.053148,94225.0,94224.0,0.053145]
[1735641744215,0.053148,94225.0,94224.0,0.413945]
[1735641745227,0.053148,94225.0,94224.0,0.3608]
[1735641745524,0.05315,94221.0,94220.0,0.053147]
[1735641745821,0.05315,94221.0,94220.0,0.413947]
[1735641748517,0.05615,94221.0,94220.0,0.413947]
[1735641753221,0.053143,94232.0,94220.0,0.413947]
[1735641753429,0.053142,94232.0,94231.0,0.3608]
[1735641755325,0.053142,94232.0,94231.0,0.3618]
[1735641756935,0.053142,94232.0,94231.0,0.10023279]
[1735641758424,0.053142,94232.0,94231.0,7.9e-07]
[1735641759218,0.4694903,94232.0,94231.0,7.9e-07]
[1735641759825,0.8302903,94232.0,94231.0,7.9e-07]
[1735641761130,0.8302903,94232.0,94220.0,0.3608]
[1735641761322,0.053149,94221.0,94220.0,0.28765017]
[1735641762730,0.055149,94221.0,94220.0,0.28765017]
[1735641767232,0.06577465,94221.0,94220.0,0.28765017]
[1735641767532,0.055149,94221.0,94220.0,0.28765017]
[1735641769837,0.055149,94221.0,94220.0,0.34079917]
[1735641770227,0.055149,94221.0,94220.0,0.26765239]
[1735641773131,0.055149,94221.0,94220.0,0.21450339]
[1735641785846,0.055149,94221.0,94220.0,0.15465966]
[1735641786447,0.054149,94221.0,94220.0,0.15465966]
[1735641786650,0.054149,94221.0,94220.0,0.20780866]
[1735641786856,0.00060001,94232.0,94220.0,0.15465966]
[1735641787157,0.053145,94231.0,94230.0,0.413943]
[1735641789550,0.054145,94231.0,94230.0,0.413943]
[1735641791056,0.053145,94231.0,94230.0,0.413943]
[1735641791356,0.054145,94231.0,94230.0,0.413943]
[1735641794359,0.054145,94231.0,94220.0,0.15465966]
[1735641794565,0.053149,94221.0,94220.0,0.15465966]
[1735641796660,0.054149,94221.0,94220.0,0.15465966]
[1735641796868,0.053154,94211.0,94210.0,0.3608]
[1735641797762,0.053161,94199.0,94191.0,0.0306]
[1735641797954,0.053165,94192.0,94191.0,0.0306]
[1735641799563,0.049165,94192.0,94191.0,0.0306]
[1735641800266,0.049165,94192.0,94191.0,0.008]
[1735641800655,0.049165,94192.0,94191.0,0.012]
[1735641801566,0.06582968,94192.0,94191.0,0.012]
[1735641825073,0.049165,94192.0,94191.0,0.012]
[1735641825784,0.47578914,94204.0,94191.0,0.012]
[1735641825785,0.11498914,94204.0,94191.0,0.012]
[1735641825972,0.053159,94202.0,94201.0,0.05316]
[1735641826875,0.413939,94238.0,94201.0,0.3608]
[1735641827079,0.05315,94218.0,94217.0,0.05315]
[1735641827875,0.05314,94236.0,94221.0,0.053148]
[1735641828078,0.05314,94236.0,94222.0,0.3608]
[1735641828270,0.3608,94238.0,94222.0,0.3608]
[1735641828271,0.053144,94229.0,94224.0,0.053147]
[1735641828474,0.37741057,94238.0,94222.0,0.3608]
[1735641828777,0.053142,94233.0,94223.0,0.053147]
[1735641828979,0.053142,94233.0,94223.0,0.0322]
[1735641829178,0.053142,94233.0,94229.0,0.053144]
[1735641829383,0.053142,94233.0,94230.0,0.0312]
[1735641829682,0.053142,94232.0,94230.0,0.0312]
[1735641830181,0.053142,94232.0,94230.0,0.0641]
[1735641830983,0.37741057,94238.0,94224.0,0.001]
[1735641831168,0.053146,94225.0,94224.0,0.001]
[1735641832367,0.053146,94225.0,94217.0,0.0309]
[1735641832368,0.08414,94237.0,94222.0,0.3608]
[1735641832685,0.053148,94223.0,94222.0,0.3608]
[1735641834482,0.053143,94232.0,94228.0,0.053144]
[1735641834685,0.053144,94230.0,94228.0,0.053144]
[1735641836285,0.053144,94230.0,94228.0,0.054144]
[1735641836488,0.003,94232.0,94228.0,0.054144]
[1735641836788,0.056144,94230.0,94228.0,0.053144]
[1735641838673,0.003,94230.0,94228.0,0.053144]
[1735641838881,0.053133,94248.0,94244.0,0.053135]
[1735641839077,0.053133,94248.0,94228.0,0.053144]
[1735641839078,0.05313,94254.0,94248.0,0.053133]
[1735641839287,0.05313,94254.0,94245.0,0.0654]
[1735641839288,0.06856432,94254.0,94249.0,0.053132]
[1735641839491,0.053131,94252.0,94250.0,0.053132]
[1735641840682,0.004592,94253.0,94250.0,0.053132]
[1735641840683,0.053132,94251.0,94250.0,0.053132]
[1735641841078,0.053132,94251.0,94250.0,0.054132]
[1735641842092,0.003,94252.0,94251.0,0.053132]
[1735641842474,0.003,94252.0,94251.0,0.413932]
[1735641842882,0.001592,94253.0,94252.0,0.053131]
[1735641844297,0.001592,94253.0,94252.0,0.054131]
[1735641847396,0.053125,94263.0,94262.0,0.053125]
[1735641847594,0.053125,94263.0,94262.0,0.413925]
[1735641849395,0.053125,94263.0,94262.0,0.414925]
[1735641849796,0.053125,94263.0,94262.0,0.3618]
[1735641851595,0.053125,94263.0,94262.0,0.001]
[1735641851596,0.42866703,94263.0,94262.0,0.001]
[1735641851793,0.053131,94252.0,94251.0,0.3608]
[1735641852501,0.053136,94244.0,94243.0,0.413936]
[1735641852692,0.053133,94249.0,94248.0,0.053132]
[1735641858401,0.16149123,94260.0,94244.0,0.0319]
[1735641858602,0.053136,94244.0,94243.0,0.3608]
[1735641859399,0.053136,94244.0,94243.0,0.413936]
[1735641859898,0.054136,94244.0,94243.0,0.413936]
[1735641866506,0.054136,94244.0,94243.0,0.3608]
[1735641869897,0.054136,94244.0,94243.0,0.413936]
[1735641875107,0.001,94244.0,94243.0,0.413936]
[1735641875404,0.054136,94244.0,94243.0,0.413936]
[1735641876705,0.054136,94244.0,94243.0,0.3608]
[1735641877297,0.054136,94244.0,94243.0,0.30097014]
[1735641879512,0.054136,94244.0,94240.0,0.053137]
[1735641879715,0.053137,94241.0,94240.0,0.053137]
[1735641882002,0.053137,94241.0,94235.0,0.3608]
[1735641882003,0.05314,94236.0,94235.0,0.413941]
[1735641882199,0.05314,94236.0,94235.0,0.053141]
[1735641883513,0.05314,94236.0,94235.0,0.055141]
[1735641883908,0.05314,94236.0,94235.0,0.002]
[1735641884313,0.05314,94236.0,94235.0,0.00143571]
[1735641887009,0.06777683,94236.0,94235.0,0.00143571]
[1735641887408,0.053142,94232.0,94231.0,0.02451709]
[1735641889120,0.053142,94232.0,94231.0,0.02651709]
[1735641890117,0.32649867,94240.0,94231.0,0.02751709]
[1735641890317,0.32593866,94240.0,94231.0,0.02751709]
[1735641891020,0.053142,94232.0,94231.0,0.02751709]
[1735641891318,0.053142,94232.0,94231.0,0.02651709]
[1735641891619,0.053142,94232.0,94231.0,0.02751709]
[1735641892520,0.053142,94232.0,94231.0,0.003]
[1735641897620,0.053142,94232.0,94231.0,0.056143]
[1735641898323,0.053137,94245.0,94244.0,0.053133]
[1735641898520,0.053137,94245.0,94244.0,0.38670196]
[1735641898828,0.053132,94255.0,94254.0,0.05313]
[1735641899329,0.053127,94260.0,94259.0,0.053126]
[1735641900013,0.00056001,94262.0,94261.0,0.053126]
[1735641900225,0.053122,94268.0,94262.0,0.053125]
[1735641900423,0.053122,94268.0,94262.0,0.091625]
[1735641900929,0.053125,94262.0,94257.0,0.053128]
[1735641901126,0.053128,94258.0,94257.0,0.053128]
[1735641903321,0.001,94262.0,94257.0,0.3608]
[1735641903628,0.001,94262.0,94261.0,0.053126]
[1735641904627,0.002,94262.0,94261.0,0.053126]
[1735641906141,0.00159174,94263.0,94257.0,0.37884531]
[1735641906429,0.00159174,94263.0,94262.0,0.053125]
[1735641907338,0.00259174,94263.0,94262.0,0.090725]
[1735641907923,0.00459174,94263.0,94262.0,0.090725]
[1735641909427,0.003,94263.0,94262.0,0.090725]
[1735641910331,0.00159139,94282.0,94281.0,0.053115]
[1735641910522,0.0015,94288.0,94283.0,0.053114]
[1735641910723,0.0015,94288.0,94287.0,0.413911]
[1735641911435,0.11435881,94299.0,94298.0,0.053105]
[1735641911731,0.11435881,94299.0,94298.0,0.38681435]
[1735641912226,0.1,94300.0,94299.0,0.053105]
[1735641913725,0.1,94300.0,94299.0,0.054105]
[1735641914731,0.1,94300.0,94299.0,0.090405]
[1735641915323,0.10836423,94340.0,94299.0,0.090405]
[1735641915324,0.47515881,94333.0,94299.0,0.0373]
[1735641915624,0.52824481,94333.0,94319.0,0.053093]
[1735641915822,0.3608,94325.0,94313.0,0.053096]
[1735641916026,0.053098,94310.0,94309.0,0.3608]
[1735641916825,0.053103,94302.0,94301.0,0.00159054]
[1735641918138,0.3608,94307.0,94288.0,0.3608]
[1735641918323,0.053105,94299.0,94288.0,0.3608]
[1735641918725,0.053105,94299.0,94292.0,0.053108]
[1735641919236,0.053105,94299.0,94294.0,0.053107]
[1735641919842,0.053102,94304.0,94303.0,0.053102]
[1735641920324,0.053105,94299.0,94298.0,0.3618]
[1735641920531,0.053105,94299.0,94298.0,0.414905]
[1735641920730,0.053105,94299.0,94298.0,0.413905]
[1735641920935,0.053105,94299.0,94298.0,0.414905]
[1735641921823,0.053105,94299.0,94298.0,0.3618]
[1735641922548,0.053105,94299.0,94298.0,0.3608]
[1735641922955,0.053105,94299.0,94298.0,0.413905]
[1735641923155,0.053105,94299.0,94298.0,0.414905]
[1735641923350,0.053105,94299.0,94298.0,0.3618]
[1735641928458,0.413905,94299.0,94298.0,0.001]
[1735641929256,0.36239092,94318.0,94298.0,0.001]
[1735641929457,0.053102,94304.0,94303.0,0.053101]
[1735641929959,0.053098,94312.0,94311.0,0.053098]
[1735641931350,0.053098,94312.0,94311.0,0.054098]
[1735641933258,0.089596,94316.0,94315.0,0.053096]
[1735641934061,0.0365,94316.0,94315.0,0.053096]
[1735641934261,0.00159092,94318.0,94317.0,0.053094]
[1735641937262,0.05468492,94318.0,94317.0,0.054094]
[1735641939462,0.05468492,94318.0,94317.0,0.053094]
[1735641940262,0.00159092,94318.0,94317.0,0.053094]
[1735641940659,0.0349,94333.0,94317.0,0.053094]
[1735641940863,0.0349,94333.0,94332.0,0.413886]
[1735641940864,0.087986,94333.0,94332.0,0.413886]
[1735641942562,0.053086,94333.0,94332.0,0.413886]
[1735641943274,0.053086,94333.0,94332.0,0.414886]
[1735641946568,0.053082,94341.0,94340.0,0.05308]
[1735641946868,0.053082,94341.0,94340.0,0.41388]
[1735641947267,0.05308,94343.0,94342.0,0.05308]
[1735641947657,0.02254848,94344.0,94340.0,0.3608]
[1735641947858,0.02254848,94344.0,94303.0,0.0245]
[1735641947859,0.053081,94340.0,94303.0,0.3608]
[1735641948069,0.053096,94314.0,94313.0,0.36239038]
[1735641948270,0.053096,94314.0,94313.0,0.00159038]
[1735641949258,0.053102,94303.0,94302.0,0.3608]
[1735641949866,0.053109,94291.0,94290.0,0.36164]
[1735641950071,0.053109,94291.0,94290.0,0.38333539]
[1735641950774,0.052109,94291.0,94290.0,0.3608]
[1735641951074,0.052109,94291.0,94272.0,0.05312]
[1735641951270,0.051115,94280.0,94278.0,0.053116]
[1735641951870,0.051115,94280.0,94274.0,0.02294758]
[1735641952073,0.048115,94280.0,94271.0,0.41392]
[1735641952373,0.041115,94280.0,94279.0,0.36239092]
[1735641952874,0.042115,94280.0,94279.0,0.37539092]
[1735641953072,0.042115,94280.0,94279.0,0.01459092]
[1735641953073,0.402915,94280.0,94279.0,0.01459092]
[1735641953375,0.05312,94272.0,94271.0,0.3608]
[1735641953760,0.05312,94272.0,94271.0,0.41392]
[1735641954575,0.001,94280.0,94279.0,0.053116]
[1735641954777,0.001,94280.0,94279.0,0.414916]
[1735641955965,0.053115,94281.0,94280.0,0.053115]
[1735641956164,0.3608,94295.0,94279.0,0.3618]
[1735641956361,0.053115,94280.0,94279.0,0.414916]
[1735641956977,0.053115,94280.0,94279.0,0.416916]
[1735641957677,0.052115,94280.0,94279.0,0.415916]
[1735641958780,0.13231853,94294.0,94279.0,0.3638]
[1735641959072,0.05311,94289.0,94288.0,0.3608]
[1735641959677,0.13231853,94294.0,94288.0,0.3608]
[1735641959870,0.18542753,94294.0,94293.0,0.053108]
[1735641960072,0.087609,94294.0,94293.0,0.053108]
[1735641960970,0.0345,94294.0,94289.0,0.00084]
[1735641961173,0.053108,94293.0,94291.0,0.053109]
[1735641961772,0.053108,94292.0,94291.0,0.053109]
[1735641962680,0.052108,94292.0,94291.0,0.053109]
[1735641963268,0.056108,94292.0,94291.0,0.053109]
[1735641965072,0.058108,94292.0,94291.0,0.053109]
[1735641966577,0.006,94292.0,94291.0,0.053109]
[1735641967678,0.033,94310.0,94309.0,0.053099]
[1735641967878,0.00056001,94312.0,94309.0,0.774699]
[1735641968078,0.15091553,94313.0,94312.0,0.053097]
[1735641968479,0.00444293,94322.0,94309.0,0.72244]
[1735641968789,0.05753493,94322.0,94321.0,0.413892]
[1735641969484,0.34853976,94325.0,94321.0,0.3608]
[1735641969688,0.34853976,94325.0,94324.0,0.05309]
[1735641970683,0.41062976,94325.0,94324.0,0.05309]
[1735641970882,0.053092,94322.0,94321.0,0.413892]
[1735641972177,0.005,94322.0,94321.0,0.413892]
[1735641972985,0.005,94322.0,94321.0,0.414892]
[1735641972986,0.014,94322.0,94321.0,0.414892]
[1735641976582,0.01406079,94322.0,94321.0,0.414892]
[1735641981379,0.01406079,94322.0,94321.0,1.914892]
[1735641981579,0.01406079,94322.0,94321.0,0.414892]
[1735641982982,0.01406079,94322.0,94321.0,1.914892]
[1735641986592,0.00906079,94322.0,94321.0,1.914892]
[1735641986886,0.01306079,94322.0,94321.0,1.913892]
[1735641987092,0.01306079,94322.0,94321.0,1.914892]
[1735641997204,0.06615279,94322.0,94321.0,0.3618]
[1735641997399,0.06615279,94322.0,94308.0,0.053099]
[1735641997588,0.053099,94309.0,94308.0,0.053099]
[1735641997790,0.3608,94314.0,94302.0,0.00159049]
[1735641997991,0.3608,94303.0,94289.0,0.00092]
[1735641998190,0.053108,94294.0,94283.0,0.053113]
[1735641998386,0.053114,94282.0,94281.0,0.3608]
[1735641998590,0.053116,94279.0,94278.0,0.053116]
[1735642000399,0.054116,94279.0,94278.0,0.054116]
[1735642000892,0.054116,94279.0,94278.0,0.057116]
[1735642003199,0.054116,94279.0,94278.0,0.004]
[1735642004601,0.05112,94271.0,94270.0,0.053121]
[1735642004787,0.053123,94267.0,94266.0,0.0182928]
[1735642004992,0.053123,94267.0,94266.0,0.053123]
[1735642006200,0.054123,94267.0,94266.0,0.054123]
[1735642006387,0.051123,94267.0,94266.0,0.054123]
[1735642006588,0.051123,94267.0,94266.0,0.001]
[1735642007196,0.051123,94267.0,94266.0,0.005]
[1735642009798,0.001,94267.0,94266.0,1.505]
[1735642010001,0.001,94267.0,94266.0,1.558123]
[1735642010204,0.3489737,94280.0,94279.0,0.053116]
[1735642010394,0.3489737,94280.0,94279.0,0.413916]
[1735642010899,0.3489737,94280.0,94279.0,1.913916]
[1735642012997,0.3489737,94280.0,94279.0,1.9323122]
[1735642013196,0.053108,94294.0,94279.0,1.9323122]
[1735642013500,0.05469621,94298.0,94297.0,0.053106]
[1735642015000,0.00159121,94298.0,94297.0,0.053106]
[1735642015205,0.3608,94305.0,94301.0,0.053103]
[1735642015206,0.053103,94302.0,94301.0,0.053103]
[1735642015707,0.47906322,94316.0,94301.0,0.053103]
[1735642015708,0.44736322,94316.0,94301.0,0.053103]
[1735642016003,0.44680321,94316.0,94315.0,0.053096]
[1735642016800,0.053094,94319.0,94318.0,0.053094]
[1735642017704,0.053094,94319.0,94315.0,0.002]
[1735642017705,0.053095,94316.0,94315.0,0.002]
[1735642017894,0.413895,94316.0,94315.0,0.002]
[1735642018095,0.413895,94316.0,94315.0,0.001]
[1735642018805,0.053106,94298.0,94297.0,0.053106]
[1735642020604,0.006,94298.0,94288.0,0.01675953]
[1735642020803,0.053106,94297.0,94260.0,0.10836423]
[1735642021107,0.053106,94297.0,94238.0,0.0245]
[1735642021108,0.053106,94297.0,94277.0,0.3608]
[1735642021409,0.053115,94281.0,94280.0,0.053115]
[1735642021913,0.053116,94278.0,94277.0,0.3608]
[1735642022715,0.053116,94278.0,94277.0,0.413917]
[1735642023823,0.053116,94278.0,94277.0,0.414917]
[1735642024309,0.053116,94278.0,94277.0,0.417917]
[1735642024611,0.053116,94278.0,94277.0,0.3648]
[1735642024997,0.053116,94278.0,94277.0,0.004]
[1735642032113,0.053116,94278.0,94277.0,0.057117]
[1735642032319,0.09784755,94283.0,94282.0,0.053114]
[1735642032906,0.04354755,94283.0,94282.0,0.413914]
[1735642033405,0.053105,94299.0,94296.0,0.053106]
[1735642033607,0.053105,94298.0,94296.0,0.053106]
[1735642033807,0.05469746,94297.0,94296.0,0.053106]
[1735642035415,0.05769746,94297.0,94296.0,0.053106]
[1735642036017,0.053107,94295.0,94294.0,0.3608]
[1735642036212,0.00459146,94297.0,94282.0,0.3618]
[1735642036213,0.05311,94291.0,94290.0,0.053109]
[1735642037712,0.05611,94291.0,94290.0,0.053109]
[1735642038114,0.003,94291.0,94290.0,0.053109]
[1735642038314,0.003,94291.0,94290.0,0.413909]
[1735642038909,0.056109,94291.0,94290.0,0.053109]
[1735642039309,0.057109,94291.0,94290.0,0.053109]
[1735642040110,0.053114,94286.0,94285.0,0.053112]
[1735642041121,0.050114,94286.0,94285.0,0.053112]
[1735642041507,0.051114,94286.0,94285.0,0.053112]
[1735642043317,0.053114,94283.0,94282.0,0.3608]
[1735642045118,0.10836423,94292.0,94276.0,0.053117]
[1735642045316,0.053118,94277.0,94276.0,0.053117]
[1735642046318,0.053118,94277.0,94276.0,0.055117]
[1735642046920,0.053118,94277.0,94276.0,0.056117]
[1735642051917,0.3489737,94292.0,94285.0,0.053112]
[1735642052522,0.053114,94286.0,94285.0,0.053112]
[1735642052730,0.053109,94291.0,94290.0,0.053109]
[1735642052920,0.3489737,94292.0,94291.0,0.053109]
[1735642053222,0.3499737,94292.0,94291.0,0.053109]
[1735642053523,0.10836423,94310.0,94290.0,0.3608]
[1735642053728,0.053106,94300.0,94299.0,0.053105]
[1735642056327,0.056106,94300.0,94299.0,0.053105]
[1735642056526,0.064106,94300.0,94299.0,0.053105]
[1735642056717,0.053112,94286.0,94285.0,0.053111]
[1735642056923,0.053114,94284.0,94283.0,0.053112]
[1735642061529,0.3608,94292.0,94280.0,0.00159107]
[1735642061719,0.053115,94281.0,94280.0,0.05470607]
[1735642062729,0.053115,94281.0,94280.0,0.05570607]
[1735642062930,0.053112,94287.0,94286.0,0.05311]
[1735642063534,0.053109,94291.0,94290.0,0.053108]
[1735642064130,0.09780986,94293.0,94280.0,0.00359107]
[1735642064330,0.053115,94281.0,94280.0,0.00259107]
[1735642065327,0.053115,94281.0,94280.0,0.00118685]
[1735642065725,0.055115,94281.0,94280.0,0.00018685]
[1735642066628,0.059115,94281.0,94280.0,0.00018685]
[1735642067329,0.006,94281.0,94260.0,0.3608]
[1735642067531,0.053126,94261.0,94260.0,0.3608]
[1735642067933,0.053129,94256.0,94255.0,0.053129]
[1735642068432,0.050129,94256.0,94255.0,0.053129]
[1735642068851,0.3608,94261.0,94253.0,0.3608]
[1735642069132,0.05313,94254.0,94253.0,0.3608]
[1735642069435,0.04913,94254.0,94243.0,0.00159145]
[1735642069734,0.053136,94244.0,94243.0,0.00159145]
[1735642071131,0.052136,94244.0,94243.0,0.00159145]
[1735642071335,0.052136,94244.0,94243.0,0.05472745]
[1735642071735,0.3608,94253.0,94243.0,0.00159145]
[1735642071940,0.09780986,94252.0,94251.0,0.053132]
[1735642072624,0.04380986,94252.0,94251.0,0.053132]
[1735642072841,0.10836423,94280.0,94265.0,0.053124]
[1735642072842,0.04380986,94266.0,94265.0,0.053124]
[1735642073224,0.04380986,94266.0,94265.0,1.553124]
[1735642074029,0.05280986,94266.0,94265.0,1.553124]
[1735642074231,0.009,94266.0,94265.0,0.053124]